fUSD/lending_fUSD_20250112
["ID","MTS","AMOUNT","RATE_DAILY","PERIOD"]
[348681706,1736712650199,-594.93,0.0001073,2]
[348681707,1736712650209,-500.0,0.0001073,2]
[348681708,1736712650218,-500.0,0.0001073,2]
[348681709,1736712650227,-986.35,0.0001073,2]
[348681710,1736712650237,-500.0,0.0001073,2]
[348681711,1736712650246,-802.5,0.0001073,2]
[348681712,1736712650255,-730.81,0.0001073,2]
[348681713,1736712650266,-808.68,0.0001073,2]
[348681714,1736712650275,-838.73,0.0001073,2]
[348681715,1736712650284,-500.0,0.0001073,2]
[348681716,1736712650293,-637.01,0.0001073,2]
[348681717,1736712650303,-500.0,0.0001073,2]
[348681718,1736712650311,-855.53,0.0001073,2]
[348681719,1736712650321,-1552.51,0.0001073,2]
[348681720,1736712650330,-4782.0,0.0001073,2]
[348681721,1736712650340,-500.0,0.0001073,2]
[348681722,1736712650351,-594.5,0.0001073,2]
[348681723,1736712650360,-532.91,0.0001073,2]
[348681724,1736712650369,-500.0,0.0001073,2]
[348681725,1736712650379,-1735.16,0.0001073,2]
[348681726,1736712650388,-852.09,0.0001073,2]
[348681727,1736712650397,-728.62,0.0001073,2]
[348681728,1736712650408,-500.0,0.0001073,2]
[348681729,1736712650420,-1291.45,0.0001073,2]
[348681730,1736712650430,-601.91,0.0001073,2]
[348681731,1736712650439,-1452.25,0.0001073,2]
[348681732,1736712650449,-267.43,0.0001073,2]
[348681733,1736712650458,-3731.52,0.0001073,2]
[348681734,1736712650469,-3157.34,0.0001073,2]
[348681735,1736712650478,-500.0,0.0001073,2]
[348681736,1736712650488,-500.0,0.0001073,2]
[348681737,1736712650497,-932.38,0.0001073,2]
[348681738,1736712650508,-616.45,0.0001073,2]
[348681739,1736712650517,-3490.99,0.0001073,2]
[348681740,1736712650526,-680.21,0.0001073,2]
[348681741,1736712650536,-657.85,0.0001073,2]
[348681742,1736712650546,-1250.78,0.0001073,2]
[348681743,1736712650555,-572.33,0.0001073,2]
[348681744,1736712650564,-500.0,0.0001073,2]
[348681745,1736712650573,-500.0,0.0001073,2]
[348681746,1736712650582,-1103.59,0.0001073,2]
[348681747,1736712650591,-632.07,0.0001073,2]
[348681748,1736712650600,-500.0,0.0001073,2]
[348681749,1736712650608,-366.40323672,0.0001073,2]
[348681750,1736712650617,-500.0,0.0001073,2]
[348681751,1736712650627,-993.8,0.0001073,2]
[348681752,1736712650636,-500.0,0.00010731,2]
[348681753,1736712650645,-500.0,0.00010731,2]
[348681754,1736712650655,-510.19,0.00010731,2]
[348681755,1736712650664,-500.0,0.00010731,2]
[348681756,1736712650673,-500.0,0.00010731,2]
[348681757,1736712650682,-283.43632501,0.00010731,2]
[348681758,1736712650691,-500.0,0.00010731,2]
[348681759,1736712650700,-738.14,0.00010731,2]
[348681760,1736712650709,-539.62,0.00010731,2]
[348681761,1736712650718,-1052.86,0.00010731,2]
[348681762,1736712650727,-751.08,0.00010731,2]
[348681763,1736712650736,-532.75,0.00010731,2]
[348681764,1736712650746,-831.34,0.00010731,2]
[348681765,1736712650755,-638.66,0.00010731,2]
[348681766,1736712650764,-500.0,0.00010731,2]
[348681767,1736712650773,-500.0,0.00010731,2]
[348681768,1736712650782,-873.65,0.00010731,2]
[348681769,1736712650791,-500.0,0.00010731,2]
[348681770,1736712650801,-1154.2,0.00010731,2]
[348681771,1736712650810,-1526.88,0.00010731,2]
[348681772,1736712650820,-1004.48,0.00010731,2]
[348681773,1736712650829,-986.69,0.00010731,2]
[348681774,1736712650838,-945.58,0.00010731,2]
[348681775,1736712650847,-3130.05,0.00010731,2]
[348681776,1736712650856,-887.76,0.00010731,2]
[348681777,1736712650865,-1301.7,0.00010731,2]
[348681778,1736712650875,-918.22,0.00010731,2]
[348681779,1736712650884,-2136.13,0.00010731,2]
[348681780,1736712650893,-554.45,0.00010731,2]
[348681781,1736712650902,-1105.21,0.00010731,2]
[348681782,1736712650911,-838.97,0.00010731,2]
[348681783,1736712650920,-1146.87,0.00010731,2]
[348681784,1736712650930,-1041.41,0.00010731,2]
[348681785,1736712650939,-911.09,0.00010731,2]
[348681786,1736712650948,-830.05,0.00010731,2]
[348681787,1736712650958,-1323.08,0.00010731,2]
[348681788,1736712650967,-4827.316,0.00010779,2]
[348681789,1736712650975,-156.345,0.00010779,2]
[348681790,1736712650984,-255.0,0.00010789,2]
[348681791,1736712650993,-1000.0,0.000108,2]
[348681792,1736712651002,-530.33755642,0.00010807,2]
[348681793,1736712651012,-757.74,0.00010818,2]
[348681794,1736712651021,-1842.24,0.00010818,2]
[348681795,1736712651030,-1719.0,0.00010818,2]
[348681796,1736712651039,-734.77,0.00010818,2]
[348681797,1736712651048,-1269.92,0.00010818,2]
[348681798,1736712651057,-800.91,0.00010818,2]
[348681799,1736712651067,-515.51,0.00010818,2]
[348681800,1736712651076,-2080.74,0.00010818,2]
[348681801,1736712651085,-1140.87,0.00010818,2]
[348681802,1736712651094,-837.61,0.00010818,2]
[348681803,1736712651103,-500.0,0.00010818,2]
[348681804,1736712651112,-648.86,0.00010818,2]
[348681805,1736712651122,-500.0,0.00010819,2]
[348681806,1736712651131,-524.09,0.00010819,2]
[348681807,1736712651141,-803.4,0.00010819,2]
[348681808,1736712651155,-1566.51,0.00010819,2]
[348681809,1736712651164,-939.66,0.00010819,2]
[348681810,1736712651175,-628.68,0.00010819,2]
[348681811,1736712651184,-647.88809,0.00010819,2]
[348681812,1736712651193,-603.991468,0.00010819,2]
[348681813,1736712651203,-2883.78,0.00010819,2]
[348681814,1736712651213,-757.35,0.00010819,2]
[348681815,1736712651222,-674.02,0.00010819,2]
[348681816,1736712651231,-659.59,0.00010819,2]
[348681817,1736712651240,-574.95,0.0001082,2]
[348681818,1736712651249,-500.0,0.0001082,2]
[348681819,1736712651258,-695.67,0.0001082,2]
[348681820,1736712651267,-500.0,0.0001082,2]
[348681821,1736712651276,-576.35,0.0001082,2]
[348681822,1736712651285,-500.0,0.0001082,2]
[348681823,1736712651294,-500.0,0.0001082,2]
[348681824,1736712651303,-500.0,0.0001082,2]
[348681825,1736712651312,-547.83,0.0001082,2]
[348681826,1736712651322,-500.0,0.0001082,2]
[348681827,1736712651331,-535.21,0.0001082,2]
[348681828,1736712651342,-523.45,0.0001082,2]
[348681829,1736712651351,-500.0,0.0001082,2]
[348681830,1736712651360,-500.0,0.0001082,2]
[348681831,1736712651369,-500.0,0.0001082,2]
[348681832,1736712651378,-652.68,0.0001082,2]
[348681833,1736712651387,-500.0,0.0001082,2]
[348681834,1736712651397,-196.01901628,0.0001082,2]
[348681835,1736712651406,-632.58,0.0001082,2]
[348681836,1736712651418,-500.0,0.0001082,2]
[348681837,1736712651427,-752.01,0.0001082,2]
[348681838,1736712651436,-607.94,0.0001082,2]
[348681839,1736712651445,-500.0,0.0001082,2]
[348681840,1736712651456,-628.06,0.0001082,2]
[348681841,1736712651465,-500.0,0.0001082,2]
[348681842,1736712651475,-500.0,0.0001082,2]
[348681843,1736712651484,-1051.49,0.0001082,2]
[348681844,1736712651493,-500.0,0.0001082,2]
[348681845,1736712651502,-500.0,0.0001082,2]
[348681846,1736712651511,-500.0,0.0001082,2]
[348681847,1736712651520,-500.0,0.0001082,2]
[348681848,1736712651529,-702.13,0.0001082,2]
[348681849,1736712651537,-672.86,0.0001082,2]
[348681850,1736712651546,-555.66,0.0001082,2]
[348681851,1736712651555,-731.29,0.0001082,2]
[348681852,1736712651564,-625.61,0.0001082,2]
[348681853,1736712651573,-500.0,0.0001082,2]
[348681854,1736712651582,-500.0,0.0001082,2]
[348681855,1736712651591,-661.41,0.0001082,2]
[348681856,1736712651600,-778.03,0.0001082,2]
[348681857,1736712651609,-614.98,0.0001082,2]
[348681858,1736712651618,-587.75,0.0001082,2]
[348681859,1736712651627,-549.03,0.0001082,2]
[348681860,1736712651636,-500.0,0.0001082,2]
[348681861,1736712651645,-500.0,0.0001082,2]
[348681862,1736712651654,-500.0,0.0001082,2]
[348681863,1736712651663,-561.06,0.0001082,2]
[348681864,1736712651672,-500.0,0.0001082,2]
[348681865,1736712651681,-500.0,0.0001082,2]
[348681866,1736712651690,-544.16,0.0001082,2]
[348681867,1736712651699,-500.0,0.0001082,2]
[348681868,1736712651708,-562.49,0.0001082,2]
[348681869,1736712651718,-500.0,0.0001082,2]
[348681870,1736712651727,-500.0,0.0001082,2]
[348681871,1736712651735,-524.66,0.0001082,2]
[348681872,1736712651745,-738.6,0.0001082,2]
[348681873,1736712651754,-576.84,0.0001082,2]
[348681874,1736712651762,-702.78,0.0001082,2]
[348681875,1736712651771,-852.51,0.0001082,2]
[348681876,1736712651780,-531.65,0.0001082,2]
[348681877,1736712651789,-682.12,0.0001082,2]
[348681878,1736712651798,-500.0,0.0001082,2]
[348681879,1736712651807,-3195.18,0.0001082,2]
[348681880,1736712651816,-539.05,0.0001082,2]
[348681881,1736712651825,-509.46,0.0001082,2]
[348681882,1736712651834,-500.0,0.0001082,2]
[348681883,1736712651842,-500.0,0.0001082,2]
[348681884,1736712651852,-2219.7,0.0001082,2]
[348681885,1736712651861,-785.29,0.0001082,2]
[348681886,1736712651870,-500.0,0.0001082,2]
[348681887,1736712651879,-500.0,0.0001082,2]
[348681888,1736712651887,-637.79,0.0001082,2]
[348681889,1736712651896,-591.76,0.0001082,2]
[348681890,1736712651905,-2446.63,0.0001082,2]
[348681891,1736712651914,-500.0,0.0001082,2]
[348681892,1736712651923,-677.79,0.0001082,2]
[348681893,1736712651932,-678.59,0.0001082,2]
[348681894,1736712651941,-500.0,0.0001082,2]
[348681895,1736712651949,-658.08,0.0001082,2]
[348681896,1736712651958,-695.73,0.0001082,2]
[348681897,1736712651967,-593.38,0.0001082,2]
[348681898,1736712651977,-500.0,0.0001082,2]
[348681899,1736712651986,-569.13,0.0001082,2]
[348681900,1736712651995,-500.0,0.0001082,2]
[348681901,1736712652004,-802.1,0.0001082,2]
[348681902,1736712652013,-578.41,0.0001082,2]
[348681903,1736712652022,-500.0,0.0001082,2]
[348681904,1736712652032,-659.69,0.0001082,2]
[348681905,1736712652041,-2162.49,0.00010821,2]
[348681906,1736712652050,-4001.87,0.00010821,2]
[348681907,1736712652058,-691.07,0.00010821,2]
[348681908,1736712652067,-587.7,0.00010821,2]
[348681909,1736712652077,-1516.5,0.00010821,2]
[348681910,1736712652086,-711.53,0.00010821,2]
[348681911,1736712652095,-150.60824624,0.00010825,2]
[348681912,1736712652104,-495.01602722,0.00010831,2]
[348681913,1736712652113,-156.7464976,0.0001085,2]
[348681914,1736712652122,-150.0,0.00010869,2]
[348681915,1736712652130,-150.0,0.00010872,2]
[348681916,1736712652140,-587.0,0.00010893,2]
[348681917,1736712652149,-364.2633314,0.000109,2]
[348681918,1736712652158,-174.89954657,0.000109,2]
[348681919,1736712652167,-1051.49,0.00010906,2]
[348681920,1736712652176,-500.0,0.00010907,2]
[348681921,1736712652185,-1786.57,0.00010907,2]
[348681922,1736712652194,-1478.79,0.00010907,2]
[348681923,1736712652203,-500.0,0.00010907,2]
[348681924,1736712652213,-1052.16,0.00010907,2]
[348681925,1736712652222,-1214.15,0.00010907,2]
[348681926,1736712652231,-704.78,0.00010907,2]
[348681927,1736712652241,-1000.0,0.00010907,2]
[348681928,1736712652250,-942.89,0.00010907,2]
[348681929,1736712652260,-1500.0,0.00010934,2]
[348681930,1736712652269,-495.01602722,0.00010934,2]
[348681931,1736712652278,-150.0,0.00010945,2]
[348681932,1736712652287,-999.0,0.00010958,2]
[348681933,1736712652483,-999.0,0.00010958,2]
[348681934,1736712652494,-4000.0,0.00010959,2]
[348681935,1736712652504,-150.0,0.00010959,2]
[348681936,1736712652513,-3000.0,0.0001097,2]
[348681937,1736712652522,-166.73794238,0.00010972,2]
[348681938,1736712652532,-156.7464976,0.0001098,2]
[348681939,1736712652542,-345.33098382,0.0001098,2]
[348681940,1736712652551,-321.68972531,0.00010995,2]
[348681941,1736712652560,-1051.49,0.00010999,2]
[348681942,1736712652569,-1051.49,0.00010999,2]
[348681943,1736712652579,-1051.49,0.00010999,2]
[348681944,1736712652588,-1051.49,0.00010999,2]
[348681945,1736712652598,-1051.49,0.00010999,2]
[348681946,1736712652607,-1051.49,0.00010999,2]
[348681947,1736712652617,-1051.49,0.00010999,2]
[348681948,1736712652627,-200.0,0.00011,2]
[348681949,1736712652636,-550.0,0.00011,2]
[348681950,1736712652645,-1583.0,0.00011,2]
[348681951,1736712652654,-2822.25765094,0.00011,2]
[348681952,1736712652663,-1172.0,0.00011002,2]
[348681953,1736712652673,-2112.87900856,0.00011002,2]
[348681954,1736712653276,-1061.69,9.996e-05,2]
[348681955,1736712653286,-7435.04538197,9.998e-05,2]
[348681956,1736712653298,-551.58542842,9.998e-05,2]
[348681957,1736712653309,-407.3599982,9.998e-05,2]
[348681958,1736712653333,-417.7292,9.998e-05,2]
[348681960,1736712957873,553.6,0.000123,31]
[348681961,1736712957934,553.6,0.000123,31]
[348681962,1736712958001,553.6,0.000123,31]
[348681963,1736712958052,553.6,0.000123,31]
[348681964,1736712958114,553.6,0.000123,31]
[348681965,1736712958172,553.6,0.000123,31]
[348681966,1736712958241,553.6,0.000123,31]
[348681967,1736712958318,553.6,0.000123,31]
[348681968,1736712958362,553.6,0.000123,31]
[348681969,1736712958426,553.6,0.000123,31]
[348681970,1736712958489,553.6,0.000123,31]
[348681971,1736712958551,553.6,0.000123,31]
[348681972,1736712958603,553.6,0.000123,31]
[348681973,1736712958663,553.6,0.000123,31]
[348681974,1736712958725,553.6,0.000123,31]
[348681975,1736712958784,553.6,0.000123,31]
[348681977,1736713114559,1701.0722178,8.988e-05,2]
[348681978,1736713137363,155.48,8.96e-05,2]
[348681979,1736713155358,421.03,8.927e-05,2]
[348681980,1736713170040,150.0,8.836e-05,2]
[348681981,1736713170229,150.0,8.954e-05,2]
[348681982,1736713230709,150.0,8.563e-05,2]
[348681983,1736713230805,150.0,8.637e-05,2]
[348681984,1736713230840,150.0,8.628e-05,2]
[348681985,1736713230914,150.0,8.792e-05,2]
[348681986,1736713230955,150.0,8.964e-05,2]
[348681987,1736713231017,150.0,8.56e-05,2]
[348681988,1736713231154,1000.0,8.885e-05,2]
[348681989,1736713258679,811.9,8.219e-05,2]
[348681990,1736713290136,1000.0,0.00023,120]
[348681991,1736713290541,150.0,8.259e-05,2]
[348681992,1736713290611,150.0,8.858e-05,2]
[348681993,1736713352215,150.0,8.737e-05,2]
[348681994,1736713410137,150.0,8.862e-05,2]
[348681995,1736713410171,150.0,7.929e-05,2]
[348681996,1736713410205,150.0,8.095e-05,2]
[348681997,1736713410571,150.0,8.772e-05,2]
[348681998,1736713467293,250.0,8.771e-05,2]
[348682006,1736713570614,465.07,0.000123,31]
[348682007,1736713570684,465.07,0.000123,31]
[348682008,1736713570982,465.07,0.000123,31]
[348682009,1736713571032,465.07,0.000123,31]
[348682010,1736713571117,465.07,0.000123,31]
[348682011,1736713571159,465.07,0.000123,31]
[348682012,1736713571206,465.07,0.000123,31]
[348682013,1736713571253,465.07,0.000123,31]
[348682014,1736713571294,465.07,0.000123,31]
[348682015,1736713571342,465.07,0.000123,31]
[348682016,1736713571390,465.07,0.000123,31]
[348682017,1736713571434,465.07,0.000123,31]
[348682018,1736713571476,465.07,0.000123,31]
[348682019,1736713571521,465.07,0.000123,31]
[348682020,1736713571571,465.07,0.000123,31]
[348682021,1736713571613,465.07,0.000123,31]
[348682023,1736713621103,253.31,8.703e-05,2]
[348682024,1736713673862,3500.0,0.00023,120]
[348682025,1736713694411,4000.0,0.00023,120]
[348682039,1736713722049,4000.0,0.00023,120]
[348682062,1736713832390,-300.0,8.987e-05,2]
[348682063,1736713832401,-4167.03757494,8.988e-05,2]
[348682064,1736713832449,-12378.63020726,8.988e-05,2]
[348682065,1736713832459,-150.0,8.999e-05,2]
[348682066,1736713832469,-150.0,9.07e-05,2]
[348682067,1736713832480,-672.7776134,9.07e-05,2]
[348682068,1736713832492,-2219.4923866,9.07e-05,2]
[348682069,1736713832502,-1000.0,9.072e-05,2]
[348682070,1736713832511,-150.0,9.073e-05,2]
[348682071,1736713832520,-491.62,9.229e-05,2]
[348682072,1736713832530,-1761.78,9.245e-05,2]
[348682073,1736713832539,-150.0,9.26e-05,2]
[348682074,1736713832549,-250.0,9.362e-05,2]
[348682075,1736713832558,-1500.0,9.404e-05,2]
[348682076,1736713832567,-150.0,9.407e-05,2]
[348682077,1736713832577,-439.1,9.479e-05,2]
[348682078,1736713832587,-150.0,9.511e-05,2]
[348682079,1736713832598,-828.98,9.534e-05,2]
[348682080,1736713832608,-437.86,9.534e-05,2]
[348682081,1736713832618,-150.0,9.539e-05,2]
[348682082,1736713832628,-150.0,9.557e-05,2]
[348682083,1736713832637,-1840.28427272,9.606e-05,2]
[348682084,1736713832671,-21250.71572728,9.606e-05,2]
[348682085,1736713832680,-150.0,9.685e-05,2]
[348682086,1736713832690,-253.31,9.791e-05,2]
[348682087,1736713832699,-1000.0,9.809e-05,2]
[348682088,1736713832709,-5192.5522,9.809e-05,2]
[348682089,1736713832718,-6543.1867,9.809e-05,2]
[348682090,1736713832728,-4992.4492,9.809e-05,2]
[348682091,1736713832741,-24762.865,9.809e-05,2]
[348682092,1736713832751,-150.0,9.814e-05,2]
[348682093,1736713832761,-437.19,9.814e-05,2]
[348682094,1736713832771,-150.0,9.814e-05,2]
[348682095,1736713832780,-150.0,9.814e-05,2]
[348682096,1736713832789,-437.19,9.814e-05,2]
[348682097,1736713832799,-150.0,9.814e-05,2]
[348682098,1736713832808,-150.0,9.814e-05,2]
[348682099,1736713832818,-150.0,9.814e-05,2]
[348682100,1736713832827,-300.0,9.814e-05,2]
[348682101,1736713832836,-437.19,9.814e-05,2]
[348682102,1736713832845,-437.19,9.814e-05,2]
[348682103,1736713832854,-150.0,9.814e-05,2]
[348682104,1736713832863,-437.19,9.814e-05,2]
[348682105,1736713832873,-389.87,9.827e-05,2]
[348682106,1736713832883,-150.0,9.906e-05,2]
[348682107,1736713832892,-1776.07,9.909e-05,2]
[348682108,1736713832902,-1058.0,9.909e-05,2]
[348682109,1736713832910,-1256.28,9.909e-05,2]
[348682111,1736713832919,-717.08,9.909e-05,2]
[348682112,1736713832930,-1000.0,9.909e-05,2]
[348682113,1736713832939,-971.33,9.909e-05,2]
[348682114,1736713832948,-500.0,9.909e-05,2]
[348682115,1736713832958,-1489.87,9.909e-05,2]
[348682116,1736713832967,-479.33656656,9.966e-05,2]
[348682117,1736713832976,-150.8549692,9.973e-05,2]
[348682118,1736713832986,-159.77187865,9.973e-05,2]
[348682119,1736713832995,-160.84536454,9.973e-05,2]
[348682120,1736713833004,-255.0,9.977e-05,2]
[348682121,1736713833014,-1000.0,9.995e-05,2]
[348682122,1736713833024,-500.0,9.996e-05,2]
[348682124,1736713833033,-504.23,9.996e-05,2]
[348682125,1736713833043,-500.0,9.996e-05,2]
[348682126,1736713833053,-725.55,9.996e-05,2]
[348682127,1736713833063,-500.0,9.996e-05,2]
[348682128,1736713833072,-500.0,9.996e-05,2]
[348682129,1736713833082,-502.16,9.996e-05,2]
[348682130,1736713833091,-537.56,9.996e-05,2]
[348682131,1736713833101,-500.0,9.996e-05,2]
[348682132,1736713833110,-500.0,9.996e-05,2]
[348682133,1736713833120,-500.0,9.996e-05,2]
[348682134,1736713833130,-500.0,9.996e-05,2]
[348682135,1736713833139,-500.0,9.996e-05,2]
[348682136,1736713833150,-217.91069669,9.996e-05,2]
[348682137,1736713833160,-500.0,9.996e-05,2]
[348682138,1736713833171,-500.0,9.996e-05,2]
[348682139,1736713833180,-500.0,9.996e-05,2]
[348682140,1736713833190,-500.0,9.996e-05,2]
[348682141,1736713833200,-545.35,9.996e-05,2]
[348682142,1736713833210,-605.19802321,9.996e-05,2]
[348682143,1736713833219,-500.0,9.996e-05,2]
[348682144,1736713833229,-500.0,9.996e-05,2]
[348682145,1736713833238,-500.0,9.996e-05,2]
[348682146,1736713833247,-735.62,9.996e-05,2]
[348682147,1736713833257,-669.91,9.996e-05,2]
[348682148,1736713833266,-741.29,9.996e-05,2]
[348682149,1736713833276,-3345.53,9.996e-05,2]
[348682150,1736713833285,-768.83,9.996e-05,2]
[348682151,1736713833294,-500.0,9.996e-05,2]
[348682152,1736713833305,-500.0,9.996e-05,2]
[348682153,1736713833314,-500.0,9.996e-05,2]
[348682154,1736713833323,-1369.63,9.996e-05,2]
[348682155,1736713833333,-500.0,9.996e-05,2]
[348682156,1736713833342,-500.0,9.996e-05,2]
[348682157,1736713833351,-500.0,9.996e-05,2]
[348682158,1736713833360,-248.73293838,9.996e-05,2]
[348682159,1736713833369,-2452.38,9.996e-05,2]
[348682160,1736713833379,-500.0,9.996e-05,2]
[348682161,1736713833388,-551.75,9.996e-05,2]
[348682162,1736713833398,-500.0,9.996e-05,2]
[348682163,1736713833407,-500.0,9.996e-05,2]
[348682164,1736713833416,-500.0,9.996e-05,2]
[348682165,1736713833427,-565.08,9.996e-05,2]
[348682166,1736713833436,-630.44,9.996e-05,2]
[348682167,1736713833445,-548.48,9.996e-05,2]
[348682168,1736713833455,-500.0,9.996e-05,2]
[348682169,1736713833464,-605.74,9.996e-05,2]
[348682170,1736713833474,-500.0,9.996e-05,2]
[348682171,1736713833484,-500.0,9.996e-05,2]
[348682172,1736713833494,-500.0,9.996e-05,2]
[348682173,1736713833503,-1008.99,9.996e-05,2]
[348682174,1736713833513,-707.39,9.996e-05,2]
[348682175,1736713833522,-517.13,9.996e-05,2]
[348682176,1736713833531,-671.5,9.996e-05,2]
[348682177,1736713833541,-859.2,9.996e-05,2]
[348682178,1736713833550,-719.78,9.996e-05,2]
[348682179,1736713833559,-510.55,9.996e-05,2]
[348682180,1736713833568,-778.1,9.997e-05,2]
[348682181,1736713833578,-745.82,9.997e-05,2]
[348682182,1736713833587,-535.7,9.997e-05,2]
[348682183,1736713833597,-837.25,9.997e-05,2]
[348682184,1736713833606,-1151.01,9.997e-05,2]
[348682185,1736713833616,-876.24,9.997e-05,2]
[348682186,1736713833625,-500.0,9.997e-05,2]
[348682187,1736713833635,-1106.11,9.997e-05,2]
[348682188,1736713833644,-387.52104014,9.997e-05,2]
[348682189,1736713833677,-295.44814184,9.997e-05,2]
[348682190,1736713833711,-24.12081802,9.997e-05,2]
[348682191,1736713833720,-1842.25,9.997e-05,2]
[348682192,1736713833732,-830.52,9.997e-05,2]
[348682193,1736713833742,-543.92,9.997e-05,2]
[348682194,1736713833752,-1526.22,9.997e-05,2]
[348682195,1736713833762,-1463.26,9.997e-05,2]
[348682196,1736713833773,-1085.05636818,9.997e-05,2]
[348682197,1736713833784,-3585.52363182,9.997e-05,2]
[348682198,1736713833794,-500.0,9.997e-05,2]
[348682199,1736713833803,-586.63,9.997e-05,2]
[348682200,1736713833814,-842.0,9.997e-05,2]
[348682201,1736713833824,-500.0,9.997e-05,2]
[348682202,1736713833833,-697.31,9.997e-05,2]
[348682203,1736713833842,-962.63,9.997e-05,2]
[348682204,1736713833851,-1379.0,9.997e-05,2]
[348682205,1736713833861,-1666.37,9.997e-05,2]
[348682206,1736713833870,-500.0,9.997e-05,2]
[348682207,1736713833879,-3502.34,9.997e-05,2]
[348682208,1736713833889,-960.81,9.997e-05,2]
[348682209,1736713833898,-904.32,9.997e-05,2]
[348682210,1736713833907,-2999.63,9.997e-05,2]
[348682211,1736713833917,-665.19,9.997e-05,2]
[348682212,1736713833926,-578.825157,9.997e-05,2]
[348682213,1736713833935,-347.51718617,9.997e-05,2]
[348682214,1736713833979,-275.80281383,9.997e-05,2]
[348682215,1736713833989,-93.43821909,9.997e-05,2]
[348682233,1736713838799,-40405.67303591,9.996e-05,2]
[348682235,1736713838810,-1196.49178091,9.997e-05,2]
[348682237,1736713838819,-1126.66,9.997e-05,2]
[348682239,1736713838828,-1247.47,9.997e-05,2]
[348682241,1736713838837,-628.702862,9.997e-05,2]
[348682243,1736713838846,-2763.63,9.997e-05,2]
[348682245,1736713838856,-952.4,9.997e-05,2]
[348682247,1736713838865,-2047.12,9.997e-05,2]
[348682249,1736713838874,-645.93,9.997e-05,2]
[348682251,1736713838882,-725.8,9.997e-05,2]
[348682253,1736713838891,-500.0,9.998e-05,2]
[348682255,1736713838901,-291.22207249,9.998e-05,2]
[348682257,1736713838911,-500.0,9.998e-05,2]
[348682259,1736713838920,-500.0,9.998e-05,2]
[348682261,1736713838932,-500.0,9.998e-05,2]
[348682263,1736713838942,-500.0,9.998e-05,2]
[348682265,1736713838951,-465.81,9.998e-05,2]
[348682267,1736713838960,-612.05,9.998e-05,2]
[348682269,1736713838970,-500.0,9.998e-05,2]
[348682271,1736713838979,-500.0,9.998e-05,2]
[348682273,1736713838987,-500.0,9.999e-05,2]
[348682275,1736713838997,-500.0,9.999e-05,2]
[348682277,1736713839006,-525.01,9.999e-05,2]
[348682279,1736713839015,-478.59621757,9.999e-05,2]
[348682281,1736713839025,-500.0,9.999e-05,2]
[348682283,1736713839034,-500.0,9.999e-05,2]
[348682285,1736713839043,-500.0,9.999e-05,2]
[348682287,1736713839052,-625.48,9.999e-05,2]
[348682289,1736713839061,-500.0,9.999e-05,2]
[348682291,1736713839070,-500.0,9.999e-05,2]
[348682293,1736713839079,-500.0,9.999e-05,2]
[348682295,1736713839089,-500.0,9.999e-05,2]
[348682297,1736713839098,-644.83,9.999e-05,2]
[348682299,1736713839107,-700.82,9.999e-05,2]
[348682301,1736713839117,-500.0,9.999e-05,2]
[348682303,1736713839126,-633.85,9.999e-05,2]
[348682305,1736713839135,-745.61,9.999e-05,2]